Cogmind - Beta 12 X4 @@@ ROGUE MODE // 2023.01.17 @ 16:43:03 Player: Decinym Result: Destroyed by 8R-AWN with 8R-AWN's Boregun Performance ------------- Evolutions (1) 500 Regions Visited (5) 1000 Robots Destroyed (34) 170 Value Destroyed (591) 591 Prototype IDs (26) 520 Alien Tech Used (0) 0 Bonus (183) 183 TOTAL SCORE: 2964 Bonus ------- Aligned with FarCom 300 Friendly Fire -117 Cogmind --------- Core Integrity 0/400 Matter 82/300 Energy 15/100 System Corruption 0% Temperature Hot (200) Movement Core (500) Ox9 Location -9/Exiles Parts ------- > --- POWER (1) -------- (None) > --- PROPULSION (3) --- (None) > --- UTILITY (3) ------ Large Storage Unit > --- WEAPON (2) ------- Guided Plasma Cannon > --- INVENTORY (15) --- Cooled Ion Engine Axe Peak State ------------ > --- POWER ------------ Cooled Ion Engine > --- PROPULSION ------- Light Treads Armored Treads Advanced Treads > --- UTILITY ---------- Large Storage Unit Bomb Drone Bay > --- WEAPON ----------- Improved Medium Laser Improved Medium Laser > --- INVENTORY -------- Cooled Ion Engine Nuclear Core Light Fission Core Light Treads Light Treads High-capacity Battery Improved Light Armor Plating Assault Rifle Heavy Assault Rifle Heavy Assault Rifle Autogun Missile Launcher Axe [Rating: 34] Favorites ----------- Power Cooled Ion Engine Engine Cooled Ion Engine Propulsion Light Treads Treads Light Treads Leg Aluminum Leg Utility Medium Storage Unit Device Bomb Drone Bay Storage Medium Storage Unit Processor Advanced Targeting Computer Protection Improved Light Armor Plating Weapon Improved Medium Laser Energy Gun Improved Medium Laser Energy Cannon Particle Cannon Ballistic Gun Autogun Launcher Missile Launcher Slashing Weapon Axe Build | -11 -10 -10 -9 -9 -9 ------- Run | Scr Mat Min Mat Min Exi Slots Evolved 2 | . . . 2 . . Power . | . . . . . . Propulsion 1 | . . . 1 . . Utility 1 | . . . 1 . . Weapon . | . . . . . . Parts Attached 41 | . 5 15 4 4 13 Power 2 | . 1 1 . . . Engine 2 | . 1 1 . . . Core . | . . . . . . Reactor . | . . . . . . Propulsion 8 | . . 5 1 . 2 Treads 5 | . . 2 1 . 2 Leg 3 | . . 3 . . . Wheel . | . . . . . . Hover . | . . . . . . Flight . | . . . . . . Utility 7 | . . 2 1 2 2 Device 1 | . . . . 1 . Storage 2 | . . 1 . . 1 Processor 1 | . . 1 . . . Hackware . | . . . . . . Protection 3 | . . . 1 1 1 Artifact . | . . . . . . Weapon 24 | . 4 7 2 2 9 Energy Gun 5 | . . 1 2 1 1 Energy Cannon 8 | . 3 3 . . 2 Ballistic Gun 4 | . . . . . 4 Ballistic Cannon . | . . . . . . Launcher 4 | . 1 1 . 1 1 Special Weapon . | . . . . . . Impact Weapon . | . . . . . . Slashing Weapon 3 | . . 2 . . 1 Piercing Weapon . | . . . . . . Special Melee Weapon . | . . . . . . Unidentified Prototypes 3 | . 1 . 1 1 . Parts Lost 16 | . . 3 . . 13 Power 2 | . . 1 . . 1 Propulsion 7 | . . 2 . . 5 Utility 2 | . . . . . 2 Weapon 5 | . . . . . 5 Highest Loss Streak 7 | . . 3 . . 7 To Critical Strikes 10 | . . . . . 10 Average Slot Usage (%) 92 | . 84 98 99 92 82 Engine 12 | . 14 14 11 11 10 Treads 17 | . . 2 32 33 29 Leg 12 | . 28 25 . . . Device 3 | . . . . 7 9 Storage 12 | . 14 14 11 11 11 Processor 6 | . . 13 11 3 . Protection 1 | . . . 11 3 . Energy Gun 12 | . . 12 16 21 10 Energy Cannon 8 | . 25 14 5 . . Ballistic Gun 2 | . 1 . . . 7 Launcher 1 | . . . . . 4 Naked Turns . | . . . . . . Heaviest Build 45 | 13 21 25 28 32 45 Greatest Support 62 | 20 20 40 62 62 62 Greatest Overweight (x) 1 | . 1 1 . . 1 Average Overweight (x) . | . . . . . . Largest Inventory Capacity 15 | . 8 10 10 10 15 Average Capacity 11 | . 8 9 10 10 14 Most Carried 15 | . 8 10 10 10 15 Average Carried 9 | . 7 9 9 10 10 Final Capacity 15 | 8 8 10 10 10 15 Final Carried 10 | 6 8 10 10 10 2 Class Distribution -------------------- 100% | Mutant Dominant Class ---------------- Mutant | -10/Materials Mutant | -10/Mines Mutant | -9/Materials Mutant | -9/Mines Mutant | -9/Exiles Resources | -11 -10 -10 -9 -9 -9 ----------- Run | Scr Mat Min Mat Min Exi Matter Collected 657 | 200 79 215 40 53 70 Remotely . | . . . . . . Salvage Created 840 | . 115 223 382 111 9 Parts 59 | . 10 13 19 17 . Haulers Intercepted 2 | . . . 2 . . Recyclers Shooed 1 | . 1 . . . . Parts Field Recycled . | . . . . . . Retrieved Matter . | . . . . . . Parts Self-Destructed . | . . . . . . Prevented . | . . . . . . Kills | -11 -10 -10 -9 -9 -9 ------- Run | Scr Mat Min Mat Min Exi Combat Hostiles Destroyed 29 | . 8 7 2 10 2 Melee 3 | . . 3 . . . Guns 8 | . . . 1 7 . Cannons 4 | . 3 1 . . . AOE 13 | . 5 3 . 3 2 Classes Destroyed 8 | . 3 1 3 . 1 Hauler 2 | . . . 2 . . Recycler 1 | . . . 1 . . Operator 1 | . . . 1 . . Watcher 2 | . 1 . 1 . . Swarmer 19 | . 6 3 . 10 . Grunt 6 | . 2 2 2 . . Sentry 2 | . . 2 . . . Assembled 2 | . . . . . 2 Thug 1 | . . . 1 . . Best Kill Streak 9 | . 9 3 3 7 2 Combat Bots Only 8 | . 8 3 2 7 2 Max Kills in Single Turn 3 | . 2 2 1 3 1 Gunslinging . | . . . . . . Exploded 3 | . 2 2 . 3 1 Melee 1 | . . 1 . . . Uniques/NPCs Destroyed . | . . . . . . Combat | -11 -10 -10 -9 -9 -9 -------- Run | Scr Mat Min Mat Min Exi Damage Taken 3306 | . 179 744 120 777 1486 Core 645 | . 15 228 . 121 281 Absorbed by Shields . | . . . . . . Core Remaining (%) 51 | 100 . 2 . . . Volleys Fired 104 | . 10 11 17 12 54 Largest 2 | . 2 2 2 2 2 Hottest 136 | . 136 131 131 112 120 Shots Fired 188 | . 15 20 34 23 96 Gun 149 | . . 9 31 22 87 Cannon 29 | . 10 9 3 . 7 Launcher 10 | . 5 2 . 1 2 Special . | . . . . . . Kinetic 58 | . . . . . 58 Thermal 120 | . 10 18 34 22 36 Explosive 10 | . 5 2 . 1 2 Electromagnetic . | . . . . . . Robot Hit Streak 14 | . 4 12 14 5 9 Robot Miss Streak 4 | . 2 1 3 3 4 Penetration Max . | . . . . . . Secondary Targets 1 | . . . . 1 . Max Gunslinging Chain 1 | . . . . 1 . Shots Hit Robots 138 | . 7 27 21 13 70 Core Hits 55 | . 13 9 8 12 13 Critical Kills . | . . . . . . Critical Parts Destroyed . | . . . . . . Critical Strikes 13 | . . 2 4 2 5 Burn 12 | . . 1 4 2 5 Sever 1 | . . 1 . . . Melee Attacks 12 | . . 12 . . . Impact . | . . . . . . Slashing 12 | . . 12 . . . Piercing . | . . . . . . Sneak Attacks . | . . . . . . Combat Hostiles . | . . . . . . Follow-up Attacks . | . . . . . . Damage Inflicted 3619 | . 641 801 386 386 1405 Guns 1784 | . . 136 384 223 1041 Cannons 487 | . 82 163 . . 242 Explosions 987 | . 559 143 . 163 122 Melee 352 | . . 352 . . . Ramming 9 | . . 7 2 . . Kinetic 667 | . . . . . 667 Thermal 1604 | . 82 299 384 223 616 Explosive 987 | . 559 143 . 163 122 Electromagnetic . | . . . . . . Impact . | . . . . . . Slashing 352 | . . 352 . . . Piercing . | . . . . . . Highest Corruption . | . . . . . . Average Corruption . | . . . . . . Corruption Purged . | . . . . . . Corruption Blocked . | . . . . . . Overload Shots . | . . . . . . Overflow Damage 61 | . 35 . . . 26 Projectiles 1 | . 1 . . . . Explosions 60 | . 34 . . . 26 Melee . | . . . . . . Knockbacks . | . . . . . . Impact . | . . . . . . Kinetic . | . . . . . . Secondary . | . . . . . . Self-Inflicted Damage 32 | . 32 . . . . Shots 2 | . 2 . . . . Rammed 1 | . . . 1 . . Targets Rammed 3 | . . 2 1 . . Kicked 2 | . . 2 . . . Crushed . | . . . . . . Highest Temperature 345 | . 276 234 345 210 276 Average Temperature 112 | . 134 115 105 85 120 Received Heat Transfer 420 | . 9 348 63 . . Effects 3 | . . 2 1 . . Interference 3 | . . 2 1 . . Siege Activations . | . . . . . . Robots Corrupted . | . . . . . . Combat Hostiles . | . . . . . . Parts Fried . | . . . . . . Impact Corruptions . | . . . . . . Robots Melted 1 | . . . 1 . . Combat Hostiles 1 | . . . 1 . . Parts Melted 8 | . . . 6 2 . Heat Transferred 3018 | . 148 666 1147 629 428 Parts Sabotaged . | . . . . . . Parts Stolen . | . . . . . . Parts Stripped . | . . . . . . Power Chain Reactions . | . . . . . . Missiles Intercepted . | . . . . . . Alert | -11 -10 -10 -9 -9 -9 ------- Run | Scr Mat Min Mat Min Exi Peak Influence 344 | . 283 277 156 344 . Initial 109 | . . 109 15 60 . Average 127 | . 107 92 71 310 . Maximum Alert Level 1 | . 1 1 . 1 . Low Security (%) 65 | . 65 72 100 15 . Level 1 34 | . 34 27 . 84 . Level 2 . | . . . . . . Level 3 . | . . . . . . Level 4 . | . . . . . . Level 5 . | . . . . . . High Security . | . . . . . . Max Security . | . . . . . . Squads Dispatched 5 | . 1 1 3 . . Investigation 2 | . . 1 1 . . Extermination . | . . . . . . Reinforcement 3 | . 1 . 2 . . Assault . | . . . . . . Garrison . | . . . . . . Intercept . | . . . . . . Searches Triggered . | . . . . . . Construction Impeded . | . . . . . . Haulers Reinforced . | . . . . . . Active Scanning Responses . | . . . . . . Cargo Convoy Interrupts . | . . . . . . Stealth | -11 -10 -10 -9 -9 -9 --------- Run | Scr Mat Min Mat Min Exi Distress Signals 2 | . 1 . 1 . . Communications Jammed . | . . . . . . Distress Signals . | . . . . . . Times Spotted 56 | . 13 9 15 13 6 Peak Tracking Total 9 | . 5 3 5 4 9 Tactical Retreats . | . . . . . . Traps | -11 -10 -10 -9 -9 -9 ------- Run | Scr Mat Min Mat Min Exi Traps Triggered . | . . . . . . Indirectly . | . . . . . . Trap Hack Attempts . | . . . . . . Triggered . | . . . . . . Disarmed . | . . . . . . Reprogrammed . | . . . . . . Reused . | . . . . . . Traps Extracted . | . . . . . . Installed . | . . . . . . Triggered . | . . . . . . Exploded 3 | . . . . . 3 Machines | -11 -10 -10 -9 -9 -9 ---------- Run | Scr Mat Min Mat Min Exi Machines Disabled 3 | . . . 1 . 2 Max in Single Turn 1 | . . . 1 . 1 Machines Sabotaged . | . . . . . . Overloaded Fab Kills . | . . . . . . Hacking | -11 -10 -10 -9 -9 -9 --------- Run | Scr Mat Min Mat Min Exi Machines Accessed 8 | . 1 2 2 1 2 Terminals 2 | . 1 . 1 . . Fabricators . | . . . . . . Repair Stations 1 | . . . 1 . . Recycling Units . | . . . . . . Scanalyzers . | . . . . . . Garrison Access . | . . . . . . Total Hacks 16 | . 2 2 9 1 2 Successful 7 | . 1 2 1 1 2 Failed 9 | . 1 . 8 . . Catastrophic 2 | . . . 2 . . Database Lockouts . | . . . . . . Manual 8 | . 2 . 5 . 1 Terminals 7 | . 2 . 5 . . Fabricators . | . . . . . . Repair Stations 4 | . . . 4 . . Recycling Units . | . . . . . . Scanalyzers . | . . . . . . Garrison Access . | . . . . . . Terminal Hacks 6 | . 1 2 . 1 2 Record 1 | . . . . . 1 Open Door 3 | . . 2 . 1 . Branch Access Points 1 | . 1 . . . . EX-Prototype ID Bank 1 | . . . . . 1 Fabricator Hacks . | . . . . . . Repair Station Hacks 1 | . . . 1 . . Scan Component 1 | . . . 1 . . Recycling Unit Hacks . | . . . . . . Scanalyzer . | . . . . . . Garrison Access Hacks . | . . . . . . Unauthorized Hacks . | . . . . . . Terminals . | . . . . . . Fabricators . | . . . . . . Repair Stations . | . . . . . . Recycling Units . | . . . . . . Scanalyzers . | . . . . . . Garrison Access . | . . . . . . Data Cores Recovered . | . . . . . . Used . | . . . . . . Hacking Detections 3 | . 1 . 2 . . Full Trace Events 1 | . . . 1 . . Feedback Events . | . . . . . . Feedback Blocked . | . . . . . . Robot Schematics Acquired . | . . . . . . Robots Built . | . . . . . . Authchips . | . . . . . . Time . | . . . . . . Total Robot Build Rating . | . . . . . . Part Schematics Acquired . | . . . . . . Parts Built . | . . . . . . Authchips . | . . . . . . Time . | . . . . . . Total Part Build Rating . | . . . . . . Parts Repaired . | . . . . . . Time . | . . . . . . Parts Recycled . | . . . . . . Recycled Matter . | . . . . . . Retrieved Matter . | . . . . . . Retrieved Components . | . . . . . . Parts Scanalyzed . | . . . . . . Part Schematics Acquired . | . . . . . . Parts Damaged . | . . . . . . Bothacking | -11 -10 -10 -9 -9 -9 ------------ Run | Scr Mat Min Mat Min Exi Used RIF Installer . | . . . . . . Robots Hacked . | . . . . . . Non-combat . | . . . . . . Combat . | . . . . . . Robot Hacks Applied . | . . . . . . Relay Couplers Released . | . . . . . . Fabnet Peak Effective % . | . . . . . . Robots Rewired . | . . . . . . Allies Hacked . | . . . . . . Hacks Repelled . | . . . . . . Allies | -11 -10 -10 -9 -9 -9 -------- Run | Scr Mat Min Mat Min Exi Total Allies . | . . . . . . Largest Group . | . . . . . . Highest-Rated Group . | . . . . . . Highest-Rated Ally . | . . . . . . Total Orders 1 | . . . . 1 . RETURN 1 | . . . . 1 . Ally Attacks 7 | . . . . 7 . Total Damage . | . . . . . . Kills . | . . . . . . Allies Corrupted . | . . . . . . Allies Melted . | . . . . . . Intel | -11 -10 -10 -9 -9 -9 ------- Run | Scr Mat Min Mat Min Exi Robot Analysis Total . | . . . . . . Derelict Logs Recovered 1 | . . 1 . . . Drone Launches 12 | . . . . 12 . Drone Recoveries 5 | . . . . 5 . Exploration | -11 -10 -10 -9 -9 -9 ------------- Run | Scr Mat Min Mat Min Exi Turns Passed 3347 | . 196 1392 317 390 1052 Spaces Moved 1515 | 1 83 556 147 204 524 Core . | . . . . . . Treads 935 | . . 60 147 204 524 Legs 580 | 1 83 496 . . . Wheels . | . . . . . . Hover . | . . . . . . Flight . | . . . . . . Fastest Speed 105 | 120 120 105 158 158 158 Average Speed 164 | 120 181 172 158 158 158 Slowest Speed 240 | 120 190 190 158 158 240 Overloaded Moves . | . . . . . . Propulsion Burnouts . | . . . . . . Robots Hopped . | . . . . . . Cave-ins Triggered . | . . . . . . Exploration Rate (%) 36 | 2 26 70 19 36 64 Regions Visited 5 Branch Regions 3 Pre-discovered Areas 2 | . . 1 . . 1 Known Exits Taken 1 | . 1 . . . . Unknown Exits Taken 4 | 1 . 1 1 1 . Scrap Searched 2 | . . 2 . . . Spaces Dug 5 | . 5 . . . . Terrain Destroyed 76 | . 23 20 . 15 18 Melee . | . . . . . . Projectile . | . . . . . . AOE 76 | . 23 20 . 15 18 Terrain Rammed . | . . . . . . Walls Destroyed . | . . . . . . Machines Disabled . | . . . . . . Actions | -11 -10 -10 -9 -9 -9 --------- Run | Scr Mat Min Mat Min Exi Total 2169 | . 115 946 199 250 659 Wait 435 | . 4 329 23 26 53 Move 1510 | . 82 555 146 203 524 Hop . | . . . . . . Pick Up 28 | . 6 11 4 1 6 Fast Attach 10 | . 3 2 2 2 1 Attach 14 | . . 3 2 . 9 Detach 1 | . 1 . . . . Swap 17 | . 2 10 . 2 3 Drop 35 | . 7 11 4 4 9 Fire 104 | . 10 11 17 12 54 Melee 12 | . . 12 . . . Ram . | . . . . . . Kick 2 | . . 2 . . . Crush 1 | . . . 1 . . Escape Stasis . | . . . . . . Rewire . | . . . . . . Trap . | . . . . . . Miscellaneous . | . . . . . . Route ------- -11/Scrapyard -10/Materials (discovered 2 exits: *Min x2) -10/Mines (discovered 2 exits: *Mat x2) -9/Materials (discovered 2 exits: [*Mat] / *Min) -9/Mines (discovered 3 exits: [*Mat] / *Exi / [*Zio]) -9/Exiles History --------- Turn | Location | Event 1 | -11/Scrapyard | Discovered new exit (range 0) 1 | -11/Scrapyard | Entered Materials 58 | -10/Materials | Identified exit to Mines 155 | -10/Materials | Destroyed 8 combat bots 197 | -10/Materials | Entered Mines 274 | -10/Mines | Met a Derelict shopkeep closing up shop 322 | -10/Mines | Build established: Mutant 689 | -10/Mines | Met a Derelict who couldn't figure out how to use a Trap Extractor 1336 | -10/Mines | Discovered new exit (range 13) 1355 | -10/Mines | Discovered new exit (range 11) 1377 | -10/Mines | Learned Materials terminal intel 1453 | -10/Mines | Core integrity fell below 50% 1472 | -10/Mines | Core integrity fell below 20% 1505 | -10/Mines | Lost 3 parts (1p2n) 1575 | -10/Mines | Learned location of Storage (-7) 1589 | -10/Mines | Entered Materials 1589 | -9/Materials | Evolved 2 slots: Propulsion x1, Utility x1 1590 | -9/Materials | Loaded intel: 12 terminal locations 1702 | -9/Materials | Discovered new exit (range 15) 1838 | -9/Materials | Discovered new exit (range 16) 1906 | -9/Materials | Entered Mines 1924 | -9/Mines | Met a Derelict bent on vengeance 1924 | -9/Mines | Discovered new exit (range 13) 2005 | -9/Mines | Assembled infested the area 2016 | -9/Mines | Found the Drone Emporium 2021 | -9/Mines | Destroyed 7 combat bots 2034 | -9/Mines | Found Prototype Device 2034 | -9/Mines | Identified Bomb Drone Bay 2155 | -9/Mines | A Derelict revealed a hidden shortcut to a safe place 2290 | -9/Mines | Deemed a non-threat by the Exiles lab entrance 2290 | -9/Mines | Discovered new exit (range 5) 2296 | -9/Mines | Entered Exiles 2339 | -9/Exiles | Met 8R-AWN 2363 | -9/Exiles | Met EX-HEX 2646 | -9/Exiles | Met EX-DEC 2656 | -9/Exiles | Learned location of Zion (-7) 2816 | -9/Exiles | Met EX-BIN 2899 | -9/Exiles | Aligned with FarCom system 2901 | -9/Exiles | Given EX-Vault access code 2937 | -9/Exiles | Opened EX-Vault 2948 | -9/Exiles | Found Gui. Plasma Cannon 2986 | -9/Exiles | Warned to stay clear of 0b10 Research branches 3105 | -9/Exiles | Attacked by the Exiles 3232 | -9/Exiles | Lost 4 parts (3n1u) 3273 | -9/Exiles | Core integrity fell below 50% 3319 | -9/Exiles | Core integrity fell below 20% 3332 | -9/Exiles | Lost 7 parts (1p2n1u3w) 3348 | -9/Exiles | Destroyed by 8R-AWN with 8R-AWN's Boregun Last Messages --------------- 03306_ HV Slug penetrates Machine. 03306_ Penetrated by HV Slug. 03307_ 8R-AWN suffers critical hit (Burn). 03310_ HV Slug penetrates Wall. 03310_ HV Slug penetrates Machine. 03310_ Penetrated by HV Slug. 03310_ 8R-AWN suffers critical hit (Burn). 03314_ Penetrated by HV Slug. 03323_ HV Slug penetrates Wall. 03323_ HV Slug penetrates Machine. 03323_ HV Slug penetrates Wall. 03325_ 8R-AWN suffers critical hit (Burn). 03327_ HV Slug penetrates Wall. 03327_ Penetrated by HV Slug. 03335_ Critical hit (Destroy). 03335_ Assault Rifle destroyed. 03340_ Penetrated by HV Slug. 03344_ Critical hit (Destroy). 03344_ Imp. Medium Laser destroyed. 03348_ Penetrated by HV Slug. Map ----- +----------------------------------------------------+ | ?????????????????????????????????????????????????? | | ?????????????????????????????????????????????????? | | ?????????????????????????????????????????????????? | | ?????????????????????????????????????????????????? | | ?????????????????????????????????????????????????? | | ?????????????????????????????????????????????????? | | ?????????????????????????????????????????????????? | | ?????????????????????????????????????????????????? | | ?????????????????????????????????????????????????? | | ?????????????????????????????????????????????????? | | ?????????????????????????????????????????????????? | | ??????????????????????????????#######????????????? | | ???????????????? ######???????#!!! "#????????????? | | ???????????????? #""#??????# "#????????????? | | ???????????????? ??????# "#????????????? | | ??????????????? #????## ""#????????????# | | ??????????????? #####" ""#???????????? | | ???????????????# ##" ""?????????????" | | ????????????????# #"" #??????????????" | | ???????????????????# ###???????????"" | | ??????????????????????# ######??????"" | | ???????????????????????## #?????? | | ????????????????########" #????????" | | ??????????????### !!"""" g #???????# | | ??????????????# ;! ] ## % ###???### | | ????????????????#! @! #? ""#####X# | | ????????????????# [!;#?##" | | ????????????????# ! #;;#??#"# | | ????????????????##;###;#;# # #?#### % % | | ????????????????????# #### ###????### | | ???????????????????# #???# #????????#"" | | ??????????????????# #????# #??????????## | | ?????????????????# #?????# #???????????## | | ????????????????# #??????# #????????????##" | | ???????????????? #???????# #?????????????#""" | | ??????????????? ?????????? ??????????????#" | | ?????????????? ??????????? ?????????????#"" | | ?????????????????????????? ?????????????#""" | | ?????????????????????????? ?????????????""" | | ?????????????????????????? ?????????????""" | | ?????????????????????????? ??????????????" | | ?????????????????????????? ?????????????""" | | ????????????????????????????????????????"" | | ?????????????????????????????????????????"" | | ?????????????????????????????????????????"""" | | ?????????????????????????????????????????? | | ???????????????????????????????????????????? | | ?????????????????????????????????????????????" | | ?????????????????????????????????????????????????? | | ?????????????????????????????????????????????????? | +----------------------------------------------------+ Best States ------------- Heat Dissipation 28 Energy Generation 14 Energy Capacity 280 Matter Stores 300 Matter Capacity 300 Sight Range 16 Terrain Scan Density 10 Armor Coverage 150 Evasion (%) 55 Targeting Accuracy 8 Recoil Reduction 3 Item Schematics ----------------- None Robot Schematics ------------------ None Fabricated ------------ Nothing Alien Tech Used ----------------- None Achievements -------------- None Challenges ------------ None Game ------ Seed ResetPointyProtomatter Manual? 0 Play Time 00:27:03 Cumulative 437.7 hours Start 2023.01.17 @ 16:10:14 End 2023.01.17 @ 16:43:03 Sessions 1 Manual Loads 0 Difficulty Rogue Special Mode None Game No. 432 Rogue 432 Adventurer 0 Explorer 0 Win Type - Total 32 Types 18/3/4/1/2/1/3/0/0 Lore% 92 Gallery% 94 Achievement% 82 Wizard Run 0 Options --------- ASCII 0 Keyboard 0 Movement Arrows Keybinds 0 Fullscreen 2 Font 24/Smallcaps Map View 76x50 Tactical HUD 1 Map Filters NONE Filters NONE Steam 1 RUN: 51b34748-19b0-4589-8c02-957268a97d5a